fUSD/lending_fUSD_20251012
["ID","MTS","AMOUNT","RATE_DAILY","PERIOD"]
[390984447,1760267198440,-150.0,0.00035234,120]
[390984448,1760267198468,-150.0,0.00035284,120]
[390984449,1760267198495,-1758.58852,0.000353,120]
[390984450,1760267198522,-150.0,0.00035337,120]
[390984451,1760267198549,-500.0,0.00035425,120]
[390984452,1760267198575,-500.0,0.00035425,120]
[390984453,1760267198601,-500.0,0.00035425,120]
[390984454,1760267198628,-500.0,0.00035425,120]
[390984455,1760267198654,-500.0,0.00035425,120]
[390984456,1760267198680,-500.0,0.00035425,120]
[390984457,1760267198707,-500.0,0.00035425,120]
[390984458,1760267198734,-500.0,0.00035425,120]
[390984459,1760267198761,-157.0,0.00035425,120]
[390984460,1760267198789,-218.92216704,0.000355,120]
[390984461,1760267198817,-173.0,0.000357,120]
[390984462,1760267198846,-150.0,0.00035777,120]
[390984463,1760267198874,-150.0,0.00035818,120]
[390984464,1760267198902,-152.0,0.000359,120]
[390984465,1760267198930,-150.0,0.0003598,120]
[390984466,1760267198958,-150.0,0.00036151,120]
[390984467,1760267198987,-150.0,0.00036151,120]
[390984468,1760267199016,-150.0,0.00036322,120]
[390984469,1760267199331,-150.0,0.00036323,120]
[390984470,1760267199362,-150.0,0.00036397,120]
[390984471,1760267199390,-173.0,0.000364,120]
[390984472,1760267199418,-150.0,0.0003641,120]
[390984473,1760267199446,-150.0,0.00036412,120]
[390984474,1760267199473,-150.0,0.00036646,120]
[390984475,1760267199501,-150.0,0.0003665,120]
[390984476,1760267199528,-150.0,0.00036672,120]
[390984477,1760267199555,-565.87176752,0.000367,120]
[390984478,1760267199581,-152.0,0.000369,120]
[390984479,1760267199607,-150.0,0.00036918,120]
[390984480,1760267199635,-869.78611063,0.00037,120]
[390984481,1760267199663,-150.0,0.00037012,120]
[390984482,1760267199691,-150.0,0.00037057,120]
[390984483,1760267199719,-173.0,0.000371,120]
[390984484,1760267199747,-150.0,0.00037248,120]
[390984485,1760267199774,-150.0,0.00037259,120]
[390984486,1760267199801,-1444.0,0.0003737,120]
[390984487,1760267199827,-1758.58852,0.000375,120]
[390984488,1760267199854,-150.0,0.00037555,120]
[390984489,1760267199882,-150.0,0.00037603,120]
[390984490,1760267199911,-173.0,0.000378,120]
[390984491,1760267199938,-152.0,0.000379,120]
[390984492,1760267199965,-768.94921054,0.00037999,120]
[390984493,1760267199993,-781.98433962,0.00038,120]
[390984494,1760267200020,-1864.1815639,0.00038,120]
[390984495,1760267200046,-272.4822891,0.00038,120]
[390984496,1760267200074,-150.0,0.00038066,120]
[390984497,1760267200101,-150.0,0.00038115,120]
[390984498,1760267200130,-150.0,0.00038296,120]
[390984499,1760267200160,-2122.46,0.00038356,120]
[390984500,1760267200187,-2122.46,0.00038356,120]
[390984501,1760267200219,-2122.46,0.00038356,120]
[390984502,1760267200244,-2122.46,0.00038356,120]
[390984503,1760267200270,-2122.46,0.00038356,120]
[390984504,1760267200297,-2122.46,0.00038356,120]
[390984505,1760267200324,-2122.46,0.00038356,120]
[390984506,1760267200349,-2122.46,0.00038356,120]
[390984507,1760267200376,-2122.46,0.00038356,120]
[390984508,1760267200404,-2122.46,0.00038356,120]
[390984509,1760267200430,-2122.46,0.00038356,120]
[390984510,1760267200456,-2122.46,0.00038356,120]
[390984511,1760267200482,-2122.46,0.00038356,120]
[390984512,1760267200507,-2122.46,0.00038356,120]
[390984513,1760267200533,-2122.46,0.00038356,120]
[390984514,1760267200558,-2122.46,0.00038356,120]
[390984515,1760267200583,-2122.46,0.00038356,120]
[390984516,1760267200608,-2122.46,0.00038356,120]
[390984517,1760267200635,-2122.46,0.00038356,120]
[390984518,1760267200661,-2122.46,0.00038356,120]
[390984519,1760267200687,-2122.46,0.00038356,120]
[390984520,1760267200712,-2122.46,0.00038356,120]
[390984521,1760267200739,-2122.46,0.00038356,120]
[390984522,1760267200765,-2122.58540241,0.00038356,120]
[390984523,1760267200792,-173.0,0.000384,120]
[390984524,1760267200819,-150.0,0.00038457,120]
[390984525,1760267200847,-1364.31639635,0.000388,120]
[390984526,1760267200874,-152.0,0.000388,120]
[390984527,1760267200902,-150.0,0.00038824,120]
[390984528,1760267200930,-150.0,0.00038885,120]
[390984529,1760267200957,-150.0,0.00038911,120]
[390984530,1760267200985,-150.0,0.00038931,120]
[390984531,1760267201014,-336231.03705046,0.00039,120]
[390984532,1760267201041,-500.0,0.00039,120]
[390984533,1760267201068,-500.0,0.00039,120]
[390984534,1760267201095,-1956.66594027,0.00039,120]
[390984535,1760267201123,-1499.87224677,0.00039,120]
[390984536,1760267201150,-500.0,0.00039,120]
[390984537,1760267201177,-500.0,0.00039,120]
[390984538,1760267201206,-500.0,0.00039,120]
[390984539,1760267201232,-500.0,0.00039,120]
[390984540,1760267201259,-500.0,0.00039,120]
[390984541,1760267201286,-2000.0,0.00039,120]
[390984542,1760267201318,-173.0,0.000391,120]
[390984543,1760267201350,-150.0,0.00039178,120]
[390984544,1760267201376,-150.0,0.00039217,120]
[390984545,1760267201403,-150.0,0.00039302,120]
[390984546,1760267201430,-150.0,0.00039527,120]
[390984547,1760267201457,-1758.58854,0.000397,120]
[390984548,1760267201483,-972.54,0.0003978,120]
[390984549,1760267201510,-173.0,0.000398,120]
[390984550,1760267201537,-152.0,0.000398,120]
[390984551,1760267201564,-1000.0,0.000398,120]
[390984552,1760267201590,-1000.0,0.000398,120]
[390984553,1760267201616,-1000.0,0.000398,120]
[390984554,1760267201645,-1000.0,0.000398,120]
[390984555,1760267201672,-1000.0,0.000398,120]
[390984556,1760267201699,-1000.0,0.000398,120]
[390984557,1760267201725,-1000.0,0.000398,120]
[390984558,1760267201752,-1000.0,0.000398,120]
[390984559,1760267201778,-1000.0,0.000398,120]
[390984560,1760267201805,-1000.0,0.000398,120]
[390984561,1760267201831,-1000.0,0.000398,120]
[390984562,1760267201857,-10000.0,0.0003988,120]
[390984563,1760267201884,-150.0,0.00039896,120]
[390984564,1760267201912,-506013.95919581,0.000399,120]
[390984565,1760267201939,-150.0,0.00039951,120]
[390984566,1760267201967,-292.5791,0.0004,120]
[390984567,1760267201994,-2003.64666064,0.0004,120]
[390984568,1760267202021,-984.52211015,0.0004,120]
[390984569,1760267202047,-1776.37103903,0.0004,120]
[390984570,1760267202073,-982.84839358,0.0004,120]
[390984571,1760267202361,-454.20033584,0.0004,120]
[390984572,1760267202388,-1720.9100256,0.0004,120]
[390984573,1760267202415,-1613.64755368,0.0004,120]
[390984574,1760267202441,-519.03041718,0.0004,120]
[390984575,1760267202468,-1105.5353053,0.0004,120]
[390984576,1760267202494,-1121.618288,0.0004,120]
[390984577,1760267202520,-189.78673483,0.0004,120]
[390984578,1760267202547,-1521.60846897,0.0004,120]
[390984579,1760267202575,-2000.0,0.0004,120]
[390984580,1760267202600,-869.78611063,0.0004,120]
[390984581,1760267202626,-318.48975054,0.0004,120]
[390984582,1760267202652,-3000.0,0.0004,120]
[390984583,1760267202678,-1000.0,0.0004,120]
[390984584,1760267202704,-1000.0,0.0004,120]
[390984585,1760267202730,-1000.0,0.0004,120]
[390984586,1760267202757,-1000.0,0.0004,120]
[390984587,1760267202782,-1000.0,0.0004,120]
[390984588,1760267202808,-1000.0,0.0004,120]
[390984589,1760267202833,-1000.0,0.0004,120]
[390984590,1760267202859,-1000.0,0.0004,120]
[390984591,1760267202885,-1000.0,0.0004,120]
[390984592,1760267202911,-1000.0,0.0004,120]
[390984593,1760267202937,-1000.0,0.0004,120]
[390984594,1760267202964,-1000.0,0.0004,120]
[390984595,1760267202990,-1000.0,0.0004,120]
[390984596,1760267203016,-1000.0,0.0004,120]
[390984597,1760267203043,-1000.0,0.0004,120]
[390984598,1760267203068,-1000.0,0.0004,120]
[390984599,1760267203094,-1000.0,0.0004,120]
[390984600,1760267203121,-1000.0,0.0004,120]
[390984601,1760267203148,-1000.0,0.0004,120]
[390984602,1760267203174,-1000.0,0.0004,120]
[390984603,1760267203203,-1000.0,0.0004,120]
[390984604,1760267203230,-1000.0,0.0004,120]
[390984605,1760267203258,-1000.0,0.0004,120]
[390984606,1760267203285,-1000.0,0.0004,120]
[390984607,1760267203311,-1000.0,0.0004,120]
[390984608,1760267203337,-1000.0,0.0004,120]
[390984609,1760267203363,-1000.0,0.0004,120]
[390984610,1760267203389,-1000.0,0.0004,120]
[390984611,1760267203415,-1000.0,0.0004,120]
[390984612,1760267203440,-1000.0,0.0004,120]
[390984613,1760267203466,-1000.0,0.0004,120]
[390984614,1760267203492,-1000.0,0.0004,120]
[390984615,1760267203518,-1000.0,0.0004,120]
[390984616,1760267203543,-1000.0,0.0004,120]
[390984617,1760267203569,-1000.0,0.0004,120]
[390984618,1760267203595,-1000.0,0.0004,120]
[390984619,1760267203621,-224.61,0.0004,120]
[390984620,1760267203646,-2500.0,0.0004,120]
[390984621,1760267203672,-2500.0,0.0004,120]
[390984622,1760267203698,-2500.0,0.0004,120]
[390984623,1760267203724,-2500.0,0.0004,120]
[390984624,1760267203750,-2000.0,0.0004,120]
[390984625,1760267203777,-5025.0,0.0004,120]
[390984626,1760267203806,-6209.0,0.0004,120]
[390984627,1760267203834,-2000.0,0.0004,120]
[390984628,1760267203859,-150.0,0.0004,120]
[390984629,1760267203886,-150.0,0.0004,120]
[390984630,1760267203912,-8720.0,0.0004,120]
[390984631,1760267203938,-150.0,0.0004,120]
[390984632,1760267203965,-150.0,0.0004,120]
[390984633,1760267203996,-3500.0,0.0004,120]
[390984634,1760267204025,-150.0,0.0004,120]
[390984635,1760267204055,-150.0,0.00040002,120]
[390984636,1760267204082,-150.0,0.00040074,120]
[390984637,1760267204109,-10000.0,0.0004009,120]
[390984638,1760267204142,-150.0,0.00040126,120]
[390984639,1760267204170,-150.0,0.00040276,120]
[390984640,1760267204200,-581.94862382,0.00040281,120]
[390984641,1760267204228,-173.0,0.000405,120]
[390984642,1760267204254,-60118.90129465,0.000405,120]
[390984643,1760267204281,-14348.94163405,0.000405,120]
[390984644,1760267204308,-471.78,0.000405,120]
[390984645,1760267204336,-2500.0,0.000405,120]
[390984646,1760267204362,-2500.0,0.000405,120]
[390984647,1760267204389,-2500.0,0.000405,120]
[390984648,1760267204416,-691.91485695,0.000406,120]
[390984649,1760267204444,-150.0,0.0004071,120]
[390984650,1760267204471,-152.0,0.000408,120]
[390984651,1760267204503,-10121.23,0.00040822,120]
[390984652,1760267204533,-150.0,0.00040897,120]
[390984653,1760267204559,-1810.0,0.000409,120]
[390984654,1760267204585,-905.0,0.000409,120]
[390984655,1760267204612,-150.0,0.00040995,120]
[390984656,1760267204640,-1000.0,0.00040999,120]
[390984657,1760267204666,-1055.36207147,0.00041,120]
[390984658,1760267204692,-208.2594575,0.00041,120]
[390984659,1760267204719,-785.92433983,0.00041,120]
[390984660,1760267204747,-419.64354365,0.00041,120]
[390984661,1760267204776,-2000.0,0.00041,120]
[390984662,1760267204818,-1153.46620457,0.00041,120]
[390984663,1760267204851,-2500.0,0.00041,120]
[390984664,1760267204877,-2500.0,0.00041,120]
[390984665,1760267204904,-2500.0,0.00041,120]
[390984666,1760267204931,-1327.4,0.00041041,120]
[390984667,1760267204959,-1327.4,0.00041059,120]
[390984668,1760267204987,-1327.4,0.00041078,120]
[390984669,1760267205016,-1448.5,0.00041095,120]
[390984670,1760267205044,-1448.5,0.00041095,120]
[390984671,1760267205071,-1448.5,0.00041095,120]
[390984672,1760267205098,-1448.5,0.00041095,120]
[390984673,1760267205125,-1448.5,0.00041095,120]
[390984674,1760267205399,-1448.5,0.00041095,120]
[390984675,1760267205427,-1448.5,0.00041095,120]
[390984676,1760267205454,-1448.5,0.00041095,120]
[390984677,1760267205480,-1448.5,0.00041095,120]
[390984678,1760267205507,-1448.5,0.00041095,120]
[390984679,1760267205533,-1448.5,0.00041095,120]
[390984680,1760267205559,-1448.5,0.00041095,120]
[390984681,1760267205585,-1448.5,0.00041095,120]
[390984682,1760267205612,-1448.5,0.00041095,120]
[390984683,1760267205638,-1448.5,0.00041095,120]
[390984684,1760267205675,-1448.5,0.00041095,120]
[390984685,1760267205709,-1448.5,0.00041095,120]
[390984686,1760267205743,-1448.5,0.00041095,120]
[390984687,1760267205778,-1448.5,0.00041095,120]
[390984688,1760267205811,-1448.5,0.00041095,120]
[390984689,1760267205844,-1448.5,0.00041095,120]
[390984690,1760267205878,-1448.5,0.00041095,120]
[390984691,1760267205913,-1448.5,0.00041095,120]
[390984692,1760267205947,-1448.67837048,0.00041095,120]
[390984693,1760267205981,-20000.0,0.00041096,120]
[390984694,1760267206019,-10000.0,0.00041096,120]
[390984695,1760267206054,-10000.0,0.00041096,120]
[390984696,1760267206088,-3349.0,0.00041096,120]
[390984697,1760267206123,-1327.4,0.00041096,120]
[390984698,1760267206160,-150.0,0.00041096,120]
[390984699,1760267206198,-173.0,0.000411,120]
[390984700,1760267206240,-1985.09,0.00041116,120]
[390984701,1760267206277,-150.0,0.00041286,120]
[390984702,1760267206312,-150.0,0.00041363,120]
[390984703,1760267206344,-300.0,0.000414,120]
[390984704,1760267206378,-455763.98197375,0.000414,120]
[390984707,1760267246772,-150.0,0.00032688,120]
[390984708,1760267246813,-1780.65,0.00032876,120]
[390984709,1760267246853,-1780.65,0.00033561,120]
[390984710,1760267246892,-1780.65,0.00034246,120]
[390984711,1760267246930,-1780.65,0.00034931,120]
[390984712,1760267246971,-1780.65,0.00035616,120]
[390984713,1760267247012,-1780.65,0.00036301,120]
[390984714,1760267247053,-1780.65,0.00036986,120]
[390984715,1760267247095,-1780.65,0.00037671,120]
[390984716,1760267247136,-1780.65,0.00038356,120]
[390984717,1760267247189,-1780.65,0.00039041,120]
[390984718,1760267247242,-1780.65,0.00039726,120]
[390984719,1760267247281,-150.0,0.0004,120]
[390984720,1760267247317,-8720.0,0.0004,120]
[390984721,1760267247354,-1780.65,0.0004041,120]
[390984722,1760267247393,-1780.65,0.00041095,120]
[390984723,1760267247435,-44236.01802625,0.000414,120]
[390984724,1760267247471,-879.8588061,0.000415,120]
[390984725,1760267247506,-2500.0,0.000415,120]
[390984726,1760267247546,-2500.0,0.000415,120]
[390984727,1760267247581,-2500.0,0.000415,120]
[390984728,1760267247618,-150.0,0.00041502,120]
[390984729,1760267247653,-150.0,0.00041541,120]
[390984730,1760267247690,-8304.27,0.000416,120]
[390984731,1760267247726,-8304.27,0.000416,120]
[390984732,1760267247763,-8304.27,0.000416,120]
[390984733,1760267247801,-1780.65,0.0004178,120]
[390984734,1760267247839,-20000.0,0.000418,120]
[390984735,1760267247876,-173.0,0.000418,120]
[390984736,1760267247914,-152.0,0.000418,120]
[390984737,1760267247950,-5000.0,0.000419,120]
[390984738,1760267247986,-12088.28813638,0.000419,120]
[390984739,1760267248025,-150.0,0.00041997,120]
[390984740,1760267248060,-200.0,0.00042,120]
[390984741,1760267248096,-5000.0,0.00042,120]
[390984742,1760267248133,-10000.0,0.00042,120]
[390984743,1760267248175,-10000.0,0.00042,120]
[390984744,1760267248215,-9700.0,0.00042,120]
[390984745,1760267248254,-600.0,0.00042,120]
[390984746,1760267248293,-600.0,0.00042,120]
[390984747,1760267248333,-657.89580336,0.00042,120]
[390984748,1760267248368,-2105.0,0.00042,120]
[390984749,1760267248402,-300.0,0.00042,120]
[390984750,1760267248438,-10000.0,0.00042,120]
[390984751,1760267248474,-10000.0,0.00042,120]
[390984752,1760267248510,-10000.0,0.00042,120]
[390984753,1760267248545,-60854.30206642,0.00042,120]
[390984754,1760267248582,-500.0,0.00042,120]
[390984755,1760267248618,-5235.75480177,0.00042,120]
[390984756,1760267248652,-8420.0,0.00042,120]
[390984757,1760267248689,-87907.89893236,0.00042,120]
[390984758,1760267248726,-10000.0,0.00042,120]
[390984759,1760267248762,-10000.0,0.00042,120]
[390984760,1760267248803,-10000.0,0.00042,120]
[390984761,1760267248839,-10000.0,0.00042,120]
[390984762,1760267248874,-10000.0,0.00042,120]
[390984763,1760267248908,-10000.0,0.00042,120]
[390984764,1760267248944,-10000.0,0.00042,120]
[390984765,1760267248979,-2000.0,0.00042,120]
[390984766,1760267249016,-2000.0,0.00042,120]
[390984767,1760267249052,-23614.4368834,0.00042,120]
[390984768,1760267249086,-400.0,0.00042,120]
[390984769,1760267249122,-25000.0,0.00042,120]
[390984770,1760267249158,-7089.90212619,0.00042,120]
[390984771,1760267249195,-50000.0,0.00042,120]
[390984772,1760267249234,-26466.073672,0.00042,120]
[390984773,1760267249272,-759.59805881,0.00042,120]
[390984774,1760267249311,-434.11762154,0.00042,120]
[390984775,1760267249349,-9588.52390603,0.00042,120]
[390984776,1760267249383,-2500.0,0.00042,120]
[390984777,1760267249417,-2500.0,0.00042,120]
[390984778,1760267249453,-2500.0,0.00042,120]
[390984779,1760267249489,-3342.0,0.0004211,120]
[390984780,1760267249524,-37483.99567797,0.00042121,120]
[390984781,1760267249559,-372.85562024,0.000422,120]
[390984782,1760267249593,-1502.37747475,0.000422,120]
[390984783,1760267249629,-150.0,0.00042227,120]
[390984784,1760267249665,-200.0,0.00042229,120]
[390984785,1760267249702,-150.0,0.00042244,120]
[390984786,1760267249740,-150.0,0.00042284,120]
[390984787,1760267249777,-5705.80888249,0.0004231,120]
[390984788,1760267249814,-1000000.0,0.000424,120]
[390984789,1760267249850,-150.0,0.00042431,120]
[390984790,1760267249886,-150.0,0.00042431,120]
[390984791,1760267249923,-150.0,0.00042447,120]
[390984792,1760267249964,-150.0,0.00042452,120]
[390984793,1760267250008,-1780.65,0.00042465,120]
[390984794,1760267250051,-150.0,0.00042471,120]
[390984795,1760267250092,-5000.0,0.000425,120]
[390984796,1760267250132,-173.0,0.000425,120]
[390984797,1760267250176,-47089.31044351,0.000425,120]
[390984798,1760267250215,-2500.0,0.000425,120]
[390984799,1760267250251,-2500.0,0.000425,120]
[390984800,1760267250286,-2500.0,0.000425,120]
[390984801,1760267250667,-152.0,0.000427,120]
[390984802,1760267250707,-150.0,0.0004272,120]
[390984803,1760267250745,-150.0,0.00042725,120]
[390984804,1760267250783,-150.0,0.00042792,120]
[390984805,1760267250820,-20000.0,0.000428,120]
[390984806,1760267250856,-57793.0,0.000428,120]
[390984807,1760267250892,-100000.0,0.000428,120]
[390984808,1760267250928,-4404.98,0.000428,120]
[390984809,1760267250965,-1222.0,0.0004285,120]
[390984810,1760267251001,-2500.0,0.00043,120]
[390984811,1760267251045,-5000.0,0.00043,120]
[390984812,1760267251086,-20268.23647581,0.00043,120]
[390984813,1760267251131,-10887.37,0.00043,120]
[390984814,1760267251183,-500.0,0.00043,120]
[390984815,1760267251224,-4444.51352275,0.00043,120]
[390984816,1760267251264,-2000.0,0.00043,120]
[390984817,1760267251299,-47700.01,0.00043,120]
[390984818,1760267251333,-10000.0,0.00043,120]
[390984819,1760267251368,-3952.09761794,0.00043,120]
[390984820,1760267251403,-400.0,0.00043,120]
[390984821,1760267251438,-25000.0,0.00043,120]
[390984822,1760267251474,-46000.0,0.00043,120]
[390984823,1760267251508,-11301.48419345,0.00043,120]
[390984824,1760267251542,-69407.42407737,0.00043,120]
[390984825,1760267251575,-9431.0,0.00043,120]
[390984826,1760267251608,-50000.0,0.00043,120]
[390984827,1760267251642,-90000.0,0.00043,120]
[390984828,1760267251676,-20312.26269843,0.00043,120]
[390984829,1760267251710,-21692.95753658,0.00043,120]
[390984830,1760267251743,-20020.0,0.00043,120]
[390984831,1760267251777,-36401.0,0.00043,120]
[390984832,1760267251810,-2500.0,0.00043,120]
[390984833,1760267251844,-2500.0,0.00043,120]
[390984834,1760267251877,-2500.0,0.00043,120]
[390984835,1760267251910,-178309.15343238,0.000431,120]
[390984836,1760267251943,-290917.64932233,0.000431,120]
[390984837,1760267251980,-1780.65,0.0004315,120]
[390984838,1760267252019,-173.0,0.000432,120]
[390984839,1760267252056,-452184.93339495,0.0004328,120]
[390984840,1760267252102,-6375.25100645,0.00043363,120]
[390984841,1760267252142,-200.0,0.00043363,120]
[390984842,1760267252180,-1000000.0,0.000434,120]
[390984843,1760267252220,-5012.0,0.000435,120]
[390984844,1760267252258,-2990.9975792,0.000435,120]
[390984845,1760267252294,-818.05680585,0.000435,120]
[390984846,1760267252330,-2500.0,0.000435,120]
[390984847,1760267252363,-1322.13397575,0.000436,120]
[390984848,1760267252396,-211178.15596187,0.000437,120]
[390984849,1760267252429,-152.0,0.000437,120]
[390984850,1760267252462,-191.34933218,0.000438,120]
[390984851,1760267252497,-10000.0,0.000438,120]
[390984852,1760267252530,-10000.0,0.000438,120]
[390984853,1760267252564,-409529.75612714,0.000438,120]
[390984858,1760267309395,-199.87466015,0.000372,120]
[390984859,1760267309431,-199.87466015,0.000372,120]
[390984860,1760267309482,-400.0,0.0004,120]
[390984861,1760267309516,-150.0,0.0004,120]
[390984862,1760267309549,-150.0,0.0004,120]
[390984863,1760267309582,-150.0,0.00040222,120]
[390984864,1760267309621,-600.0,0.00041399,120]
[390984865,1760267309911,-151.0,0.00041399,120]
[390984866,1760267310048,-156.587,0.00041399,120]
[390984867,1760267310084,-600.0,0.00041399,120]
[390984868,1760267310119,-162.380719,0.00041399,120]
[390984869,1760267310155,-600.0,0.00041399,120]
[390984870,1760267310190,-600.0,0.00041399,120]
[390984871,1760267310226,-168.3888056,0.00041399,120]
[390984872,1760267310261,-600.0,0.00041399,120]
[390984873,1760267310295,-174.61919141,0.00041399,120]
[390984874,1760267310327,-600.0,0.00041399,120]
[390984875,1760267310360,-181.08010149,0.00041399,120]
[390984876,1760267310394,-600.0,0.00041399,120]
[390984877,1760267310430,-187.78006525,0.00041399,120]
[390984878,1760267310466,-600.0,0.00041399,120]
[390984879,1760267310500,-261.51151202,0.00041399,120]
[390984880,1760267310536,-600.0,0.00041399,120]
[390984881,1760267310570,-600.0,0.00041399,120]
[390984882,1760267310603,-600.0,0.00041399,120]
[390984883,1760267310636,-600.0,0.00041399,120]
[390984884,1760267310669,-600.0,0.00041399,120]
[390984885,1760267310702,-600.0,0.00041399,120]
[390984886,1760267310738,-600.0,0.00041399,120]
[390984887,1760267310774,-600.0,0.00041399,120]
[390984888,1760267310809,-600.0,0.00041399,120]
[390984889,1760267310844,-600.0,0.00041399,120]
[390984890,1760267310878,-600.0,0.00041399,120]
[390984891,1760267310912,-600.0,0.00041399,120]
[390984892,1760267310947,-500.0,0.00041399,120]
[390984893,1760267310982,-300.0,0.00041399,120]
[390984894,1760267311016,-160.0,0.00041399,120]
[390984895,1760267311051,-151.0,0.00041399,120]
[390984896,1760267311084,-1000.0,0.00041399,120]
[390984897,1760267311118,-500.0,0.00041399,120]
[390984898,1760267311152,-6888.0,0.00041399,120]
[390984899,1760267311186,-300.0,0.00041399,120]
[390984900,1760267311220,-151.0,0.00041399,120]
[390984901,1760267311259,-1000.0,0.00041399,120]
[390984902,1760267311294,-500.0,0.00041399,120]
[390984903,1760267311328,-160.0,0.00041399,120]
[390984904,1760267311360,-7142.856,0.00041399,120]
[390984905,1760267311392,-300.0,0.00041399,120]
[390984906,1760267311424,-1000.0,0.00041399,120]
[390984907,1760267311457,-151.0,0.00041399,120]
[390984908,1760267311488,-160.0,0.00041399,120]
[390984909,1760267311522,-7407.141672,0.00041399,120]
[390984910,1760267311555,-500.0,0.00041399,120]
[390984911,1760267311586,-300.0,0.00041399,120]
[390984912,1760267311618,-1000.0,0.00041399,120]
[390984913,1760267311650,-151.0,0.00041399,120]
[390984914,1760267311680,-160.0,0.00041399,120]
[390984915,1760267311712,-500.0,0.00041399,120]
[390984916,1760267311745,-7681.20591386,0.00041399,120]
[390984917,1760267311778,-301.84518884,0.00041399,120]
[390984918,1760267311813,-1000.0,0.00041399,120]
[390984919,1760267311846,-151.0,0.00041399,120]
[390984920,1760267311878,-160.0,0.00041399,120]
[390984921,1760267311911,-500.0,0.00041399,120]
[390984922,1760267311946,-7965.41053268,0.00041399,120]
[390984923,1760267311980,-151.0,0.00041399,120]
[390984924,1760267312016,-1000.0,0.00041399,120]
[390984925,1760267312052,-151.0,0.00041399,120]
[390984926,1760267312086,-8260.13072239,0.00041399,120]
[390984927,1760267312120,-151.0,0.00041399,120]
[390984928,1760267312155,-160.47175024,0.00041399,120]
[390984929,1760267312190,-151.0,0.00041399,120]
[390984930,1760267312226,-1000.0,0.00041399,120]
[390984931,1760267312259,-151.0,0.00041399,120]
[390984932,1760267312292,-8565.75555911,0.00041399,120]
[390984933,1760267312326,-151.0,0.00041399,120]
[390984934,1760267312358,-152.31400619,0.00041399,120]
[390984935,1760267312389,-156.587,0.00041399,120]
[390984936,1760267312422,-8882.6885148,0.00041399,120]
[390984937,1760267312454,-151.0,0.00041399,120]
[390984938,1760267312488,-162.380719,0.00041399,120]
[390984939,1760267312521,-9211.34798985,0.00041399,120]
[390984940,1760267312553,-151.0,0.00041399,120]
[390984941,1760267312586,-500.0,0.00041399,120]
[390984942,1760267312617,-168.3888056,0.00041399,120]
[390984943,1760267312649,-9552.16786547,0.00041399,120]
[390984944,1760267312680,-151.0,0.00041399,120]
[390984945,1760267312712,-174.61919141,0.00041399,120]
[390984946,1760267312746,-9905.5980765,0.00041399,120]
[390984947,1760267312781,-151.0,0.00041399,120]
[390984948,1760267312814,-181.08010149,0.00041399,120]
[390984949,1760267312847,-10272.10520533,0.00041399,120]
[390984950,1760267312880,-151.0,0.00041399,120]
[390984951,1760267312913,-174.89021389,0.00041399,120]
[390984952,1760267312949,-4313.85105465,0.00041399,120]